Cogmind - Beta 9.6 @@@ ROGUE MODE // 2020.05.10 @ 14:51:18 Player: RNGesus Result: Destroyed by as-66079 with Assembled Heavy Rifle Performance ------------- Evolutions (0) 0 Regions Visited (2) 400 Robots Destroyed (26) 130 Value Destroyed (538) 538 Prototype IDs (0) 0 Alien Tech Used (0) 0 Bonus (0) 0 TOTAL SCORE: 1068 Bonus ------- None Cogmind --------- Core Integrity 0/250 Matter 300/300 Energy 125/125 System Corruption 0% Temperature Cool (0) Movement Core (350) Ox6 Location -10/Mines Parts ------- > --- POWER (1) -------- Light Ion Engine > --- PROPULSION (2) --- (None) > --- UTILITY (2) ------ Large Storage Unit > --- WEAPON (2) ------- (None) > --- INVENTORY (10) --- Light Ion Engine Light Treads Light Treads Medium Storage Unit Medium Storage Unit Large Storage Unit Terrain Scan Processor Transport Network Coupler Hacking Suite Peak State ------------ > --- POWER ------------ Ion Engine > --- PROPULSION ------- Light Treads Light Treads > --- UTILITY ---------- Medium Storage Unit Medium Storage Unit > --- WEAPON ----------- Small Laser Assault Rifle > --- INVENTORY -------- Light Ion Engine Medium Storage Unit Terrain Scan Processor Hacking Suite Assault Rifle Plasma Cutter [Rating: 8] Favorites ----------- Power Ion Engine Engine Ion Engine Propulsion Light Treads Treads Light Treads Leg Aluminum Leg Wheel Wheel Utility Large Storage Unit Storage Large Storage Unit Weapon Assault Rifle Energy Gun Medium Laser Ballistic Gun Assault Rifle Special Weapon Plasma Cutter Build | -11 -10 -10 ------- Run | Scr Mat Min Slots Evolved . | . . . Power . | . . . Propulsion . | . . . Utility . | . . . Weapon . | . . . Parts Attached 19 | 6 6 7 Power 2 | 1 . 1 Engine 2 | 1 . 1 Core . | . . . Reactor . | . . . Propulsion 5 | 2 1 2 Treads 3 | 2 1 . Leg 1 | . . 1 Wheel 1 | . . 1 Hover . | . . . Flight . | . . . Utility 5 | 1 4 . Device . | . . . Storage 5 | 1 4 . Processor . | . . . Hackware . | . . . Protection . | . . . Artifact . | . . . Weapon 7 | 2 1 4 Energy Gun 3 | 1 . 2 Energy Cannon . | . . . Ballistic Gun 2 | 1 1 . Ballistic Cannon . | . . . Launcher . | . . . Special Weapon 2 | . . 2 Impact Weapon . | . . . Slashing Weapon . | . . . Piercing Weapon . | . . . Special Melee Weapon . | . . . Unidentified Prototypes . | . . . Parts Lost 10 | . 1 9 Power 1 | . . 1 Propulsion 3 | . . 3 Utility . | . . . Weapon 6 | . 1 5 Highest Loss Streak 5 | . 1 5 Average Slot Usage (%) 95 | . 98 93 Engine 13 | . 14 12 Treads 26 | . 28 25 Storage 27 | . 26 27 Energy Gun 8 | . 8 9 Ballistic Gun 15 | . 19 12 Special Weapon 1 | . . 2 Naked Turns . | . . . Heaviest Build 41 | 12 41 41 Greatest Support 40 | 40 40 40 Greatest Overweight (x) 6 | . 1 6 Average Overweight (x) . | . . 1 Largest Inventory Capacity 16 | 6 16 16 Average Capacity 14 | 5 12 15 Most Carried 10 | 2 9 10 Average Carried 8 | . 7 9 Final Capacity 16 | 6 16 10 Final Carried 9 | 2 9 9 Class Distribution -------------------- 100% | Mutant Dominant Class ---------------- Mutant | -10/Materials Mutant | -10/Mines Resources | -11 -10 -10 ----------- Run | Scr Mat Min Matter Collected 616 | 190 237 189 Remotely . | . . . Salvage Created 744 | . 433 311 Parts 56 | . 38 18 Haulers Intercepted 1 | . 1 . Recyclers Shooed 2 | . 1 1 Parts Field Recycled . | . . . Retrieved Matter . | . . . Parts Self-Destructed . | . . . Prevented . | . . . Kills | -11 -10 -10 ------- Run | Scr Mat Min Combat Hostiles Destroyed 20 | . 10 10 Guns 19 | . 10 9 Cannons 1 | . . 1 Classes Destroyed 8 | . 6 2 Worker 1 | . . 1 Tunneler 1 | . . 1 Hauler 1 | . 1 . Recycler 1 | . 1 . Operator 1 | . 1 . Watcher 1 | . 1 . Swarmer 9 | . 3 6 Grunt 11 | . 7 4 Best Kill Streak 4 | . 4 3 Combat Bots Only 3 | . 2 3 Max Kills in Single Turn 2 | . 2 2 Gunslinging 1 | . 1 1 Exploded . | . . . Melee . | . . . Uniques/NPCs Destroyed . | . . . Combat | -11 -10 -10 -------- Run | Scr Mat Min Damage Taken 1191 | . 411 780 Core 258 | . 63 195 Absorbed by Shields . | . . . Core Remaining (%) 100 | 100 . . Volleys Fired 77 | . 38 39 Largest 2 | . 2 2 Hottest 70 | . 60 70 Shots Fired 133 | . 75 58 Gun 126 | . 75 51 Cannon . | . . . Launcher . | . . . Special 7 | . . 7 Kinetic 87 | . 52 35 Thermal 46 | . 23 23 Explosive . | . . . Electromagnetic . | . . . Robot Hit Streak 10 | . 10 9 Robot Miss Streak 5 | . 5 4 Penetration Max . | . . . Secondary Targets 5 | . 1 4 Max Gunslinging Chain 1 | . 1 1 Shots Hit Robots 90 | . 52 38 Core Hits 41 | . 22 19 Critical Hits 1 | . . 1 Critical Kills 1 | . . 1 Critical Parts Destroyed . | . . . Melee Attacks . | . . . Impact . | . . . Slashing . | . . . Piercing . | . . . Sneak Attacks . | . . . Combat Hostiles . | . . . Follow-up Attacks . | . . . Damage Inflicted 1059 | . 587 472 Guns 981 | . 587 394 Cannons . | . . . Explosions . | . . . Melee . | . . . Ramming . | . . . Kinetic 643 | . 412 231 Thermal 416 | . 175 241 Explosive . | . . . Electromagnetic . | . . . Impact . | . . . Slashing . | . . . Piercing . | . . . Highest Corruption . | . . . Average Corruption . | . . . Corruption Purged . | . . . Overload Shots . | . . . Overflow Damage . | . . . Projectiles . | . . . Explosions . | . . . Melee . | . . . Knockbacks . | . . . Impact . | . . . Kinetic . | . . . Secondary . | . . . Self-Inflicted Damage . | . . . Shots . | . . . Rammed . | . . . Targets Rammed . | . . . Kicked . | . . . Crushed . | . . . Highest Temperature 118 | . 54 118 Average Temperature 44 | . 21 60 Received Heat Transfer 462 | . 186 276 Siege Activations . | . . . Robots Corrupted . | . . . Combat Hostiles . | . . . Parts Fried . | . . . Impact Corruptions . | . . . Robots Melted . | . . . Combat Hostiles . | . . . Parts Melted 5 | . . 5 Heat Transferred 1081 | . 400 681 Parts Sabotaged . | . . . Parts Stolen . | . . . Parts Stripped . | . . . Power Chain Reactions . | . . . Missiles Intercepted . | . . . Alert | -11 -10 -10 ------- Run | Scr Mat Min Peak Influence 239 | . 190 239 Average Influence 100 | . 77 129 Maximum Alert Level 1 | . . 1 Low Security (%) 79 | 100 100 60 Level 1 20 | . . 39 Level 2 . | . . . Level 3 . | . . . Level 4 . | . . . Level 5 . | . . . High Security . | . . . Max Security . | . . . Squads Dispatched 3 | . 3 . Investigation 1 | . 1 . Extermination . | . . . Reinforcement 2 | . 2 . Assault . | . . . Garrison . | . . . Intercept . | . . . Construction Impeded . | . . . Haulers Reinforced . | . . . Stealth | -11 -10 -10 --------- Run | Scr Mat Min Distress Signals 3 | . 3 . Communications Jammed . | . . . Distress Signals . | . . . Times Spotted 38 | . 25 13 Peak Tracking Total 5 | . 5 3 Tactical Retreats 2 | . 2 . Traps | -11 -10 -10 ------- Run | Scr Mat Min Traps Triggered 2 | . 2 . Indirectly . | . . . Trap Hack Attempts . | . . . Triggered . | . . . Disarmed . | . . . Reprogrammed . | . . . Reused . | . . . Traps Extracted . | . . . Installed . | . . . Triggered . | . . . Machines | -11 -10 -10 ---------- Run | Scr Mat Min Machines Disabled . | . . . Max in Single Turn . | . . . Machines Sabotaged . | . . . Garrisons Compromised . | . . . Overloaded Fab Kills . | . . . Fab Network Shutdowns . | . . . Hacking | -11 -10 -10 --------- Run | Scr Mat Min Machines Accessed 2 | . 2 . Terminals 2 | . 2 . Fabricators . | . . . Repair Stations . | . . . Recycling Units . | . . . Scanalyzers . | . . . Garrison Access . | . . . Total Hacks 5 | . 5 . Successful 2 | . 2 . Failed 3 | . 3 . Catastrophic . | . . . Database Lockouts . | . . . Manual 5 | . 5 . Terminals 5 | . 5 . Fabricators . | . . . Repair Stations . | . . . Recycling Units . | . . . Scanalyzers . | . . . Garrison Access . | . . . Terminal Hacks 1 | . 1 . Branch Access Points 1 | . 1 . Fabricator Hacks . | . . . Repair Station Hacks . | . . . Recycling Unit Hacks . | . . . Scanalyzer . | . . . Garrison Access Hacks . | . . . Unauthorized Hacks 1 | . 1 . Terminals 1 | . 1 . Operators 1 | . 1 . Fabricators . | . . . Repair Stations . | . . . Recycling Units . | . . . Scanalyzers . | . . . Garrison Access . | . . . Data Cores Recovered . | . . . Used . | . . . Hacking Detections . | . . . Full Trace Events . | . . . Feedback Events . | . . . Feedback Blocked . | . . . Robot Schematics Acquired . | . . . Robots Built . | . . . Matter . | . . . Time . | . . . Total Robot Build Rating . | . . . Part Schematics Acquired . | . . . Parts Built . | . . . Matter . | . . . Time . | . . . Total Part Build Rating . | . . . Parts Repaired . | . . . Time . | . . . Parts Recycled . | . . . Recycled Matter . | . . . Retrieved Matter . | . . . Retrieved Components . | . . . Parts Scanalyzed . | . . . Part Schematics Acquired . | . . . Parts Damaged . | . . . Bothacking | -11 -10 -10 ------------ Run | Scr Mat Min Used RIF Installer . | . . . Robots Hacked . | . . . Non-combat . | . . . Combat . | . . . Robot Hacks Applied . | . . . Relay Couplers Released . | . . . Robots Rewired . | . . . Allies Hacked . | . . . Hacks Repelled . | . . . Allies | -11 -10 -10 -------- Run | Scr Mat Min Total Allies . | . . . Largest Group . | . . . Highest-Rated Group . | . . . Highest-Rated Ally . | . . . Total Orders . | . . . Ally Attacks . | . . . Total Damage . | . . . Kills . | . . . Allies Corrupted . | . . . Allies Melted . | . . . Intel | -11 -10 -10 ------- Run | Scr Mat Min Robot Analysis Total . | . . . Derelict Logs Recovered 2 | . . 2 Drone Launches . | . . . Drone Recoveries . | . . . Exploration | -11 -10 -10 ------------- Run | Scr Mat Min Turns Passed 1528 | 71 660 797 Spaces Moved 737 | 41 310 386 Core 5 | 4 . 1 Treads 658 | 37 310 311 Legs 42 | . . 42 Wheels 32 | . . 32 Hover . | . . . Flight . | . . . Fastest Speed 50 | 50 160 90 Average Speed 170 | 149 167 175 Slowest Speed 350 | 160 180 350 Overloaded Moves . | . . . Propulsion Burnouts . | . . . Robots Hopped . | . . . Cave-ins Triggered . | . . . Exploration Rate (%) 46 | 3 67 69 Regions Visited 2 Branch Regions 1 Pre-discovered Areas . | . . . Known Exits Taken 1 | . 1 . Unknown Exits Taken 1 | 1 . . Scrap Searched 1 | . . 1 Spaces Dug . | . . . Terrain Destroyed . | . . . Melee . | . . . Projectile . | . . . AOE . | . . . Actions | -11 -10 -10 --------- Run | Scr Mat Min Total 862 | 48 375 439 Wait 17 | . 14 3 Move 735 | 40 309 386 Hop . | . . . Pick Up 10 | 2 6 2 Fast Attach 10 | 6 1 3 Attach 3 | . 1 2 Detach 1 | . . 1 Swap 6 | . 4 2 Drop 3 | . 2 1 Fire 77 | . 38 39 Melee . | . . . Ram . | . . . Kick . | . . . Crush . | . . . Escape Stasis . | . . . Rewire . | . . . Trap . | . . . Miscellaneous . | . . . Route ------- -11/Scrapyard -10/Materials (discovered 3 exits: [*Mat] / *Min x2) -10/Mines (discovered 1 exit: [*Mat]) History --------- Turn | Location | Event 10 | -11/Scrapyard | Discovered new exit (range 14) 72 | -11/Scrapyard | Entered Materials 272 | -10/Materials | Identified exit to Mines 301 | -10/Materials | Build established: Mutant 343 | -10/Materials | Discovered new exit (range 5) 732 | -10/Materials | Entered Mines 908 | -10/Mines | Discovered new exit (range 10) 982 | -10/Mines | Learned Materials garrison access intel 995 | -10/Mines | Learned location of 1 exit from Materials 1091 | -10/Mines | Deemed a non-threat by the Exiles lab entrance 1335 | -10/Mines | Core integrity fell below 50% 1425 | -10/Mines | Lost 5 parts (1p1n3w) 1441 | -10/Mines | Assembled infested the area 1446 | -10/Mines | Assisted by a Guerilla fighting off Assembled 1505 | -10/Mines | Core integrity fell below 20% 1529 | -10/Mines | Destroyed by as-66079 with Assembled Heavy Rifle Last Messages --------------- 01404_ Acquired Aluminum Leg. 01407_ K-01 Serf collects debris. 01418_ Acquired 10 matter. 01422_ K-01 Serf collects debris. 01423_ Acquired Lgt. Ion Engine. 01424_ Acquired 10 matter. 01426_ K-01 Serf collects debris. 01428_ Acquired Wheel. 01430_ K-01 Serf collects debris. 01441_ ALERT: Infestation in the mines, dispatching Demolisher response squad. 01446_ A derelict emerges from the shadows: "You need to get out of here! I've been tracking a group of Assembled to figure out where they're coming from, and they're closing on this area, come on!" 01496_ Plasma Cutter destroyed. 01498_ Dropped Aluminum Leg. 01510_ Acquired 10 matter. 01516_ K-01 Serf destroyed. 01519_ Lgt. Treads destroyed. 01528_ Wheel destroyed. Map ----- +----------------------------------------------------+ | ???## #???# ###????????????? | | ??## #?## ######???????? | | ??# ## ## ####????? | | ??# #### ##???# | | ???# ####??# #??## | | ???# ##?????## ### #?## | | ???# #???????####?### =%### | | ???#### #??????????????## | | ??????## #???????????????# % | | ???????## ##???????????????# | | ????????#####????????????????## | | ??????????????????????????????### | | ????????????????????????????????### = | | ??????????????????????????????????## | | ???????????????????????????????????##### | | ???????????????????????????????????????# | | ????????????????????????????############ | | ????????????????????????????# % | | ????????????????????????????# ########## | | ?????????????????????????#### ########?# | | ?????????????????????????# #?# | | ?????????????????????????# !!! #?# | | ?????????????????????????# ! !% #?# | | ?????????????????????????# ! ! #?# | | ??????????################ !!! #?# | | ??????????# @aaa #?# | | ?????# ## ############## #?# | | ???????# #????????????# #?## | | ???????### ##????????????#############??? | | ?????????##?????????????????????????????? | | ????????######??????????????????????????? | | ???????## ##?????????????????????????? | | ??????## #?????????????????????????? | | ?????## #########????############## | | ?????# %* #????# | | ?????# [ = = #????# ########### | | ?????## =%=###### ## #????# #?????????? | | ??????# [##????# ## #????# #?????????? | | ??????## ##?????#=## #????# #?????????? | | ????#######??????# ## #???## ##????????? | | ???## ##????????#[## #??## #????????? | | ??## ##???????#*## #### ##???????? | | ??# ####????# ## #???????? | | ??# ###### ####### #???????? | | ???#= [ #?????## #??????? | | ???## # #######??????## ???? | | ????#=#### ##?????????????### < ? | | ????#%#??####?????????????????## ? | | ????#%#?????????????????????????# ? | | ??###=####???????????????????????### ##? | +----------------------------------------------------+ Best States ------------- Heat Dissipation 25 Energy Generation 10 Energy Capacity 250 Matter Stores 300 Matter Capacity 300 Sight Range 16 Terrain Scan Density 10 Evasion (%) 42 Recoil Reduction 2 Item Schematics ----------------- None Robot Schematics ------------------ None Fabricated ------------ Nothing Alien Tech Used ----------------- None Achievements -------------- None Challenges ------------ None Game ------ Seed IntegratedControlBuckler Manual? 0 Play Time 00:07:45 Cumulative 215.1 hours Start 2020.05.10 @ 14:45:52 End 2020.05.10 @ 14:51:18 Sessions 1 Manual Loads 0 Difficulty Rogue Special Mode None Game No. 343 Rogue 343 Adventurer 0 Explorer 0 Win Type - Total 4 Types 2/0/1/1/0/0/0 Lore% 76 Gallery% 75 Achievement% 57 Wizard Run 0 Options --------- ASCII 0 Keyboard 1 Movement Numpad Keybinds 0 Fullscreen 2 Font 18/X11Bold Map View 76x50 Tactical HUD 1 Map Filters NONE Filters NONE Steam 1 RUN: de350ba1-90f8-4c95-8eb2-6f235b086137